bitfinex/quotes_ETHUSD_20220227
["timestamp","ask_amount","ask_price","bid_price","bid_amount"]
[1645934402924,1.0,2718.3,2717.7,0.53]
[1645934403866,1.08178387,2717.8,2717.7,0.0698]
[1645934404264,4.58178387,2717.8,2717.5,0.02158293]
[1645934404466,2.08178387,2717.8,2717.5,0.02158293]
[1645934404963,4.5,2717.7,2717.2,0.00096]
[1645934405166,4.5,2717.7,2717.0,0.00096]
[1645934405167,4.8675,2717.7,2717.0,0.00096]
[1645934405367,4.8675,2717.7,2717.3,0.00539601]
[1645934405368,1.0,2717.4,2717.3,0.00539601]
[1645934405569,5.7026,2717.4,2717.3,9.601e-05]
[1645934405769,5.7026,2717.4,2716.3,0.00096]
[1645934405770,0.3675,2717.1,2716.3,0.00096]
[1645934405968,0.3675,2717.1,2715.6,3.1495]
[1645934405969,3.5,2717.0,2715.8,0.00096]
[1645934406170,6.5,2716.8,2715.8,0.00096]
[1645934406371,6.5,2716.8,2715.5,0.25]
[1645934406372,0.3675,2716.6,2715.6,0.00096]
[1645934406569,1.1606,2716.8,2715.6,0.00096]
[1645934406570,0.3675,2716.4,2715.6,0.00096]
[1645934406867,1.4606,2716.8,2715.3,0.00096]
[1645934406868,1.0,2715.6,2715.3,0.00096]
[1645934407066,1.0,2715.6,2715.2,0.08816133]
[1645934407268,1.0,2715.6,2715.2,0.61816133]
[1645934407269,1.42391625,2715.3,2715.2,0.61816133]
[1645934407511,1.0,2715.6,2715.2,0.61816133]
[1645934408714,1.0,2715.6,2715.3,3.5]
[1645934408925,1.0,2716.1,2715.4,1.53]
[1645934409114,1.0,2716.1,2715.6,1.0]
[1645934409312,1.44730268,2715.8,2715.7,0.53]
[1645934410719,1.44730268,2715.8,2715.6,0.0053319]
[1645934411021,1.44730268,2715.8,2715.4,0.53]
[1645934411269,1.44730268,2715.8,2715.6,0.005332]
[1645934412265,1.44730268,2715.8,2715.4,0.53]
[1645934412465,1.44730268,2715.8,2715.6,0.005332]
[1645934413466,1.0,2715.6,2715.1,0.00096]
[1645934413766,1.0,2715.6,2715.2,0.02133119]
[1645934414165,1.0,2715.6,2715.2,1.92224226]
[1645934414566,0.72365134,2715.4,2715.2,1.92224226]
[1645934414765,1.44730268,2715.4,2715.2,0.53]
[1645934415027,1.44730268,2715.4,2715.3,0.00160383]
[1645934415928,1.44730268,2715.4,2715.2,0.53]
[1645934416229,1.44730268,2715.4,2715.2,0.53160386]
[1645934417031,1.44730268,2715.4,2715.2,0.53]
[1645934417228,1.44730268,2715.4,2715.2,0.53533278]
[1645934418332,1.44730268,2715.4,2715.2,0.53]
[1645934418529,1.44730268,2715.4,2715.2,0.53533278]
[1645934418971,1.44730268,2715.4,2715.2,0.53180983]
[1645934419572,0.72365134,2715.4,2715.2,0.52647705]
[1645934419771,1.0,2716.1,2715.2,0.53180983]
[1645934419972,1.44730268,2715.3,2715.2,0.53276983]
[1645934420171,1.44730268,2715.3,2715.2,0.53180983]
[1645934420571,1.33433768,2715.3,2715.2,0.53180983]
[1645934420773,1.33433768,2715.3,2715.2,0.52647705]
[1645934421372,1.33433768,2715.3,2715.2,1.84344825]
[1645934423233,1.33433768,2715.3,2715.2,2.29064825]
[1645934424032,1.33433768,2715.3,2715.2,2.14344825]
[1645934424930,0.72365134,2715.3,2715.2,2.14344825]
[1645934425133,1.33433768,2715.3,2715.2,2.14344825]
[1645934427667,1.33433768,2715.3,2715.2,0.82647705]
[1645934428870,1.33433768,2715.3,2715.2,0.52647705]
[1645934429070,1.33433768,2715.3,2714.9,0.00096]
[1645934429071,1.0,2715.2,2714.9,0.00096]
[1645934429269,1.33433768,2715.3,2714.7,0.66229831]
[1645934429472,1.0,2715.2,2715.1,0.00533288]
[1645934429867,1.72365134,2715.2,2715.1,0.00533288]
[1645934430326,1.72365134,2715.2,2714.8,0.53096]
[1645934430529,2.33433768,2715.2,2715.0,0.00160396]
[1645934430728,1.33433768,2715.2,2715.1,0.53]
[1645934434885,1.33433768,2715.2,2715.1,1.58045139]
[1645934435087,1.33433768,2715.2,2715.1,0.53]
[1645934440237,1.33433768,2715.2,2715.0,0.00532908]
[1645934440436,1.33433768,2715.2,2715.0,0.0043682]
[1645934440634,2.32557766,2715.3,2715.0,0.0043682]
[1645934440936,1.33433768,2715.2,2715.0,0.0043682]
[1645934441568,2.33433768,2715.2,2715.0,0.00131449]
[1645934442167,2.33288084,2715.2,2715.0,0.00131449]
[1645934442571,2.33288084,2715.2,2715.0,0.00436828]
[1645934443567,2.33288084,2715.2,2714.8,0.53096]
[1645934443767,2.33288084,2715.2,2715.0,0.00488492]
[1645934444769,2.33288084,2715.2,2714.8,0.53]
[1645934445014,2.33288084,2715.2,2715.0,0.00488492]
[1645934445819,2.33288084,2715.2,2715.1,0.53]
[1645934445820,1.72365134,2715.2,2715.1,0.53]
[1645934446030,0.3675,2715.8,2715.1,0.53]
[1645934446222,1.33288084,2715.2,2715.1,0.53]
[1645934449573,1.33288084,2715.2,2715.1,0.83]
[1645934450979,1.33288084,2715.2,2715.1,1.83]
[1645934453421,1.33288084,2715.2,2715.1,1.6692]
[1645934455226,1.33288084,2715.2,2715.1,1.3692]
[1645934455426,1.33288084,2715.2,2715.1,0.3692]
[1645934456311,1.33288084,2715.2,2714.9,1.32738334]
[1645934456496,1.33288084,2715.2,2715.0,7.8964]
[1645934456699,0.6092295,2715.2,2715.0,7.8964]
[1645934456896,0.72365134,2715.1,2715.0,8.8964]
[1645934457095,1.33288084,2715.1,2715.0,8.8964]
[1645934459100,1.33288084,2715.1,2715.0,10.25419495]
[1645934459300,1.33288084,2715.1,2715.0,9.79339495]
[1645934460028,1.33288084,2715.1,2715.0,10.79339495]
[1645934461238,1.33288084,2715.1,2715.0,11.09339495]
[1645934462038,1.33288084,2715.1,2715.0,11.24070095]
[1645934462439,1.33288084,2715.1,2715.0,10.77990095]
[1645934464169,1.33288084,2715.1,2715.0,11.07990095]
[1645934465172,1.33288084,2715.1,2715.0,9.77990095]
[1645934466770,1.33288084,2715.1,2715.0,8.422106]
[1645934466970,1.33288084,2715.1,2715.0,7.422106]
[1645934468231,1.33288084,2715.1,2715.0,8.422106]
[1645934468437,1.33288084,2715.1,2715.0,9.80952714]
[1645934469229,1.33288084,2715.1,2715.0,8.422106]
[1645934470436,1.33288084,2715.1,2715.0,9.74618927]
[1645934470942,1.33288084,2715.1,2715.0,8.422106]
[1645934472175,1.33288084,2715.1,2715.0,9.69718392]
[1645934472777,1.33288084,2715.1,2715.0,8.422106]
[1645934474480,1.33288084,2715.1,2715.0,9.69457657]
[1645934475122,1.33288084,2715.1,2715.0,8.422106]
[1645934482519,1.33288084,2715.1,2715.0,8.722106]
[1645934483121,1.33288084,2715.1,2715.0,8.422106]
[1645934484321,1.33288084,2715.1,2715.0,9.422106]
[1645934485426,1.33288084,2715.1,2715.0,8.422106]
[1645934485827,1.3319863,2715.1,2715.0,8.422106]
[1645934486026,0.6092295,2715.1,2715.0,8.422106]
[1645934486279,1.3319863,2715.1,2715.0,8.422106]
[1645934490121,1.2819863,2715.1,2715.0,8.422106]
[1645934490321,0.7227568,2715.1,2715.0,8.422106]
[1645934490522,1.2819863,2715.1,2715.0,8.422106]
[1645934493526,1.2819863,2715.1,2715.0,8.54039669]
[1645934494570,1.2819863,2715.1,2715.0,8.58344427]
[1645934495573,1.2819863,2715.1,2715.0,8.62649185]
[1645934496686,1.2819863,2715.1,2715.0,8.66953943]
[1645934497530,1.2819863,2715.1,2715.0,8.78783012]
[1645934498536,1.2819863,2715.1,2715.0,8.90612081]
[1645934499738,1.2819863,2715.1,2715.0,9.0244115]
[1645934500737,1.2819863,2715.1,2715.0,9.06745908]
[1645934501471,1.2819863,2715.1,2715.0,9.01745908]
[1645934501670,1.2819863,2715.1,2715.0,9.06050666]
[1645934502673,1.2319863,2715.1,2715.0,9.10355424]
[1645934502872,0.5592295,2715.1,2715.0,9.10355424]
[1645934503072,1.2319863,2715.1,2715.0,9.10355424]
[1645934503673,1.2319863,2715.1,2715.0,9.22184493]
[1645934504876,1.2319863,2715.1,2715.0,8.33442962]
[1645934504877,5.8132863,2715.1,2715.0,8.33442962]
[1645934505128,7.36939598,2715.1,2715.0,8.33442962]
[1645934505328,8.36939598,2715.1,2715.0,1.37087144]
[1645934505526,8.36939598,2715.1,2714.7,0.29706415]
[1645934505527,5.0,2715.0,2714.7,0.29706415]
[1645934505726,3.5,2714.9,2714.5,0.14051769]
[1645934505926,4.67400203,2714.9,2714.5,0.11829069]
[1645934506129,4.67400203,2714.9,2714.1,0.32799571]
[1645934506130,4.0,2714.6,2714.1,0.32799571]
[1645934506328,4.0,2714.6,2713.2,3.68424]
[1645934506329,4.0,2714.4,2713.9,0.06160314]
[1645934506531,4.8127,2714.4,2713.9,0.06160314]
[1645934506726,1.55655545,2714.3,2713.9,0.06160314]
[1645934506928,3.5,2714.2,2713.9,0.06160314]
[1645934507128,1.20126797,2714.0,2713.9,0.01160314]
[1645934507331,2.56876797,2714.0,2713.2,0.22819714]
[1645934507626,1.3675,2714.0,2713.2,0.22819714]
[1645934507828,1.0,2714.0,2713.3,0.04035806]
[1645934508028,0.3113,2714.1,2713.3,0.57035806]
[1645934508227,1.0,2713.9,2713.3,0.57035806]
[1645934508629,0.6727568,2713.8,2713.3,0.57035806]
[1645934508870,0.6727568,2713.8,2713.5,1.41002756]
[1645934508871,1.6727568,2713.8,2713.5,1.41002756]
[1645934509075,0.6727568,2713.8,2713.5,1.41002756]
[1645934509374,0.6727568,2713.8,2713.6,0.53]
[1645934510377,0.6727568,2713.8,2713.6,0.0692]
[1645934510978,0.6727568,2713.8,2713.6,0.0745053]
[1645934511381,0.5592295,2713.7,2713.6,0.0745053]
[1645934511579,0.5592295,2713.7,2713.6,10.9447053]
[1645934511780,0.5592295,2713.7,2713.6,11.9447053]
[1645934511982,0.5592295,2713.7,2713.6,11.9394]
[1645934512191,0.5592295,2713.7,2713.6,7.4394]
[1645934512384,0.5592295,2713.7,2713.6,7.3702]
[1645934513327,0.5592295,2713.7,2713.6,6.9094]
[1645934513630,1.5592295,2713.7,2713.6,7.9094]
[1645934513828,2.2319863,2713.7,2713.6,7.9094]
[1645934514231,4.5,2713.6,2713.5,0.0053054]
[1645934514435,4.5,2713.6,2713.3,0.04035806]
[1645934514436,8.0,2713.6,2713.3,0.04035806]
[1645934514632,10.19278645,2713.6,2713.3,0.04035806]
[1645934514833,10.19278645,2713.6,2713.0,0.295756]
[1645934514834,5.69278645,2713.6,2713.5,0.0053054]
[1645934515638,5.69278645,2713.6,2713.1,0.02122477]
[1645934515639,6.06028645,2713.6,2712.9,0.00096]
[1645934515840,6.06028645,2713.6,2713.4,0.00530559]
[1645934516043,1.0,2713.5,2713.4,0.00530559]
[1645934516275,4.5,2713.5,2712.3,1.36573233]
[1645934516470,0.3675,2713.4,2712.3,1.36573233]
[1645934516671,0.5592295,2712.8,2712.3,1.61573233]
[1645934517169,0.5592295,2712.8,2712.3,0.53]
[1645934517574,1.0,2712.5,2712.3,0.53]
[1645934518470,0.5592295,2712.8,2712.4,1.08903186]
[1645934518670,0.5592295,2712.8,2712.5,0.53]
[1645934519071,1.5592295,2712.8,2712.5,0.53]
[1645934519270,0.6727568,2712.6,2712.5,0.53]
[1645934519470,0.6727568,2712.6,2712.5,0.53158822]
[1645934520332,0.6727568,2712.6,2712.5,2.26467986]
[1645934522034,1.2319863,2712.6,2712.5,2.26467986]
[1645934522231,1.2319863,2712.6,2712.5,2.41211686]
[1645934522432,1.2319863,2712.6,2712.5,2.26467986]
[1645934523032,1.2319863,2712.6,2712.5,0.83]
[1645934523980,1.2319863,2712.6,2712.5,0.96265219]
[1645934524179,1.2319863,2712.6,2712.5,1.9827042]
[1645934524382,1.2319863,2712.6,2712.5,0.66265219]
[1645934525786,2.2319863,2712.6,2712.5,0.66265219]
[1645934528626,2.2319863,2712.6,2712.5,0.96265219]
[1645934528627,1.2319863,2712.6,2712.5,0.96265219]
[1645934528827,1.2319863,2712.6,2712.5,0.66265219]
[1645934531388,2.2319863,2712.6,2712.5,0.13265219]
[1645934532083,1.2319863,2712.6,2712.4,4.12e-05]
[1645934532291,3.5,2712.5,2712.4,4.12e-05]
[1645934532484,3.8675,2712.5,2711.9,0.00096]
[1645934532684,1.0,2711.9,2711.7,0.25]
[1645934532882,1.0,2711.9,2711.5,0.53]
[1645934533287,3.5,2711.8,2711.4,0.00096]
[1645934533484,3.5,2711.8,2711.2,0.00096]
[1645934533682,3.5,2711.8,2710.9,1.12323]
[1645934533883,1.0,2711.5,2710.9,0.25]
[1645934534086,1.0,2711.5,2711.0,0.53]
[1645934534283,3.5,2711.4,2711.0,0.53]
[1645934534489,1.0,2711.5,2711.0,0.0687]
[1645934535335,1.0,2711.4,2711.0,0.0687]
[1645934536237,1.0,2711.2,2711.0,0.0687]
[1645934537537,1.0,2711.2,2710.8,8.2837933]
[1645934537738,1.0,2711.2,2710.9,0.677527]
[1645934537944,1.5592295,2711.0,2710.9,0.147527]
[1645934538144,1.5592295,2711.0,2710.7,0.0501]
[1645934538145,2.2319863,2711.0,2710.7,0.0501]
[1645934538345,1.0,2710.8,2710.7,0.0501]
[1645934538980,1.0,2710.8,2710.7,0.0001]
[1645934540482,1.0,2710.8,2710.6,3.14792478]
[1645934540881,3.5,2710.7,2710.6,3.1427298]
[1645934541090,1.0,2710.7,2710.6,3.1427298]
[1645934541682,1.0,2710.7,2710.6,3.0927298]
[1645934543227,1.5592295,2710.7,2710.6,3.0927298]
[1645934543427,2.2319863,2710.7,2710.6,2.6314298]
[1645934544232,2.2319863,2710.7,2710.6,6.1314298]
[1645934544233,1.2319863,2710.7,2710.6,6.1314298]
[1645934544430,1.2319863,2710.7,2710.6,6.6614298]
[1645934544630,1.2319863,2710.7,2710.6,3.1614298]
[1645934545335,1.2319863,2710.7,2710.6,2.6314298]
[1645934545539,2.2319863,2710.7,2710.6,2.6314298]
[1645934557274,1.2319863,2710.7,2710.6,2.6314298]
[1645934559138,2.2319863,2710.7,2710.6,2.6314298]
[1645934561786,1.2319863,2710.7,2710.6,2.6314298]
[1645934562384,0.02573359,2710.8,2710.6,2.6314298]
[1645934562593,0.02573359,2710.8,2710.7,0.53]
[1645934564790,0.02573359,2710.8,2710.7,0.83]
[1645934565628,0.02573359,2710.8,2710.7,1.1975]
[1645934567233,3.1251,2712.1,2710.9,0.3675]
[1645934567434,0.1474,2712.0,2711.2,0.3675]
[1645934567635,1.19797374,2713.3,2711.6,6.9865]
[1645934567636,0.00583935,2713.0,2711.6,6.9865]
[1645934567834,1.0,2712.6,2711.7,0.8975]
[1645934568033,1.0,2712.6,2711.7,0.89846]
[1645934568234,1.0,2712.6,2712.2,1.23739472]
[1645934568433,1.0,2712.5,2712.3,0.53]
[1645934569474,0.0055605,2713.0,2712.3,0.53]
[1645934569475,0.0055605,2713.0,2712.9,1.29686905]
[1645934569681,0.36459219,2712.7,2712.1,1.8611]
[1645934569875,0.36459219,2712.7,2712.3,0.3675]
[1645934570078,0.36459219,2712.7,2712.4,0.53]
[1645934570480,1.36459219,2712.7,2712.4,0.53]
[1645934571078,1.36459219,2712.7,2712.5,1.0513257]
[1645934571279,1.36459219,2712.7,2712.6,0.53]
[1645934572081,0.36459219,2712.7,2712.6,0.53]
[1645934572290,1.0,2713.1,2712.6,0.8975]
[1645934572549,0.00556129,2713.0,2712.7,1.10665741]
[1645934572735,0.00556129,2713.0,2712.8,0.53]
[1645934573335,1.0,2713.4,2712.8,0.53]
[1645934573535,2.4367,2713.6,2712.8,0.53]
[1645934573536,0.00429966,2713.0,2712.8,0.53]
[1645934574635,1.0,2713.2,2712.8,0.53]
[1645934574851,0.19215947,2714.7,2712.8,0.53]
[1645934574852,0.00429966,2713.0,2712.9,11.5875]
[1645934575038,0.00429966,2713.0,2712.9,7.5165]
[1645934575244,1.0,2713.9,2712.9,8.5165]
[1645934575642,1.0,2713.9,2713.5,1.04953182]
[1645934575845,1.0,2713.9,2713.5,1.57953182]
[1645934579084,1.0,2714.2,2714.1,1.26919504]
[1645934579285,3.8675,2714.8,2713.9,0.53]
[1645934579485,1.0,2714.2,2714.0,0.53]
[1645934580147,1.0,2714.7,2714.0,0.53]
[1645934580344,1.0,2714.7,2714.1,1.23686578]
[1645934580538,4.45534656,2715.5,2714.2,0.53]
[1645934580539,0.1472,2715.5,2714.2,0.53]
[1645934580738,2.8099,2715.7,2714.2,0.53]
[1645934580739,1.0,2715.2,2714.2,3.23491483]
[1645934580938,0.00429665,2714.5,2714.2,12.1175]
[1645934581336,0.00429665,2714.5,2714.2,13.1175]
[1645934581540,0.00429665,2714.5,2714.4,11.5875]
[1645934581741,2.2623,2715.4,2714.4,23.43099249]
[1645934582040,2.1623,2715.4,2714.6,18.7599163]
[1645934582341,1.67302471,2716.2,2714.7,12.1175]
[1645934582540,1.0,2715.4,2715.3,1.33156911]
[1645934582746,1.0,2715.4,2715.3,1.86156911]
[1645934583038,3.86912471,2716.1,2715.3,0.53]
[1645934583241,0.00584584,2715.5,2715.3,0.53]
[1645934583440,0.00584584,2715.5,2715.2,1.0445]
[1645934583642,1.0,2715.3,2715.2,1.0445]
[1645934583882,1.0,2715.3,2715.2,0.7579]
[1645934584581,1.0,2715.3,2714.9,1.73440305]
[1645934585389,1.0,2715.3,2714.9,0.53]
[1645934585586,0.00584598,2715.2,2714.9,0.53]
[1645934585988,3.50584598,2715.2,2714.9,0.53]
[1645934586190,1.0,2715.1,2714.6,0.78]
[1645934586394,1.0,2715.1,2713.3,0.22801742]
[1645934586395,7.0,2714.8,2713.3,0.22801742]
[1645934586591,7.0,2714.8,2713.4,7.3691]
[1645934586592,12.0,2714.6,2713.4,7.3691]
[1645934586797,5.0,2714.2,2713.4,2.59584242]
[1645934586993,5.0,2714.2,2712.6,0.00517742]
[1645934586994,5.0,2713.9,2712.6,0.00517742]
[1645934587190,5.05747331,2713.8,2711.9,0.02071524]
[1645934587396,5.05747331,2713.8,2711.1,0.00096]
[1645934587397,1.0,2712.8,2711.1,0.00096]
[1645934587650,0.3675,2712.6,2710.9,0.00096]
[1645934587845,0.3675,2712.4,2710.7,0.00096]
[1645934588053,1.0,2711.4,2710.7,0.00096]
[1645934588249,0.53,2711.3,2710.7,0.00096]
[1645934588445,0.53,2711.3,2710.6,2.1698298]
[1645934588655,1.0,2710.8,2710.6,2.1707898]
[1645934588855,1.0,2710.8,2710.6,2.1698298]
[1645934589451,3.5,2710.7,2710.6,2.1698298]
[1645934589652,0.53,2710.7,2710.6,2.1698298]
[1645934589851,4.03,2710.7,2710.6,2.1698298]
[1645934590253,0.53,2710.7,2710.6,2.1698298]
[1645934590453,0.363,2710.8,2710.6,2.1698298]
[1645934590660,1.0,2710.9,2710.6,2.1698298]
[1645934591278,1.0,2710.8,2710.6,2.1698298]
[1645934591481,1.0,2710.8,2710.6,1.7082298]
[1645934591682,1.0,2710.8,2710.6,1.71330643]
[1645934591879,1.3675,2710.8,2710.6,1.71330643]
[1645934592081,0.8975,2710.8,2710.6,1.71330643]
[1645934592778,0.8975,2710.8,2710.6,1.7082298]
[1645934592779,1.0,2710.7,2710.6,1.7082298]
[1645934593779,4.5,2710.7,2710.6,1.7082298]
[1645934594180,4.5,2710.7,2710.6,1.3407298]
[1645934594482,4.5,2710.7,2710.6,0.8791298]
[1645934595745,1.0,2710.7,2710.6,0.8791298]
[1645934595942,0.77858689,2710.5,2710.1,0.02028158]
[1645934596341,0.77858689,2710.5,2709.9,0.00096]
[1645934596543,0.77858689,2710.5,2709.8,0.25]
[1645934596544,1.0,2710.2,2710.1,0.02028158]
[1645934597446,1.0,2710.2,2709.4,12.05936]
[1645934597643,1.0,2710.2,2709.5,0.3]
[1645934597844,1.0,2710.2,2709.4,13.73430983]
[1645934598642,1.0,2710.2,2709.4,12.42686]
[1645934599084,1.0,2710.2,2709.4,12.72686]
[1645934599285,1.0,2710.2,2709.4,13.72686]
[1645934599488,0.77858689,2710.5,2709.6,11.42686]
[1645934599687,0.77858689,2710.5,2709.6,12.50726]
[1645934599990,0.77858689,2710.5,2709.6,13.80726]
[1645934600189,0.77858689,2710.5,2709.9,0.00505017]
[1645934600992,0.77858689,2710.5,2709.9,1.12635829]
[1645934601191,0.77858689,2710.5,2709.9,1.42635829]
[1645934601392,0.77858689,2710.5,2710.1,0.00504989]
[1645934601594,0.77858689,2710.5,2710.1,0.53504989]
[1645934601795,0.77858689,2710.5,2710.2,11.22]
[1645934601991,0.77858689,2710.5,2710.4,11.22]
[1645934602192,0.77858689,2710.5,2710.4,11.75]
[1645934602392,0.77858689,2710.5,2710.4,13.4175]
[1645934602628,0.77858689,2710.5,2710.4,14.66490911]
[1645934603529,0.77858689,2710.5,2710.4,1.24740911]
[1645934604633,1.77858689,2710.5,2710.4,1.24740911]
[1645934605940,0.77858689,2710.5,2710.4,1.24740911]
[1645934606382,0.77858689,2710.5,2710.4,0.78590911]
[1645934609392,0.77858689,2710.5,2710.4,0.32440911]
[1645934611536,1.77858689,2710.5,2710.4,0.32440911]
[1645934612038,0.77858689,2710.5,2710.4,0.32440911]
[1645934612238,1.77858689,2710.5,2710.4,0.32440911]
[1645934612437,2.14608689,2710.5,2709.4,0.88450113]
[1645934612637,2.14608689,2710.5,2709.2,11.75]
[1645934612838,3.5,2710.4,2709.2,11.75]
[1645934613041,2.14608689,2710.5,2709.2,11.75]
[1645934613245,2.14608689,2710.5,2709.5,0.884]
[1645934613647,2.14608689,2710.5,2709.5,1.184]
[1645934614077,1.77858689,2710.5,2709.5,1.184]
[1645934614279,3.5,2710.4,2709.5,1.184]
[1645934614477,1.0,2710.3,2709.5,1.184]
[1645934614880,1.0,2710.3,2709.5,1.084]
[1645934615483,1.0,2710.3,2709.5,0.62346]
[1645934615685,1.0,2710.3,2709.5,0.00096]
[1645934615992,0.77858689,2710.5,2709.5,0.00096]
[1645934615993,0.00433685,2710.2,2709.9,16.5875]
[1645934616190,0.00433685,2710.2,2709.8,0.6224]
[1645934616191,0.00433685,2710.2,2710.1,11.5875]
[1645934616484,0.00433685,2710.2,2710.1,12.1175]
[1645934616684,0.00433685,2710.2,2710.1,13.1175]
[1645934616885,0.00433685,2710.2,2710.1,12.75]
[1645934617087,0.77858689,2710.5,2710.1,13.3716]
[1645934617285,0.00583644,2710.3,2710.1,13.6216]
[1645934617739,0.00583644,2710.3,2710.2,0.3675]
[1645934618036,0.77858689,2710.5,2710.4,11.5875]
[1645934618037,0.64002333,2710.5,2710.4,11.5875]
[1645934618234,0.64002333,2710.5,2710.4,17.53966]
[1645934618432,2.333e-05,2710.5,2710.4,29.91866]
[1645934618633,0.1474,2712.4,2710.6,11.5875]
[1645934618634,1.0,2711.9,2710.6,11.5875]
[1645934618842,1.0,2711.9,2710.8,11.22]
[1645934619039,1.0,2711.9,2710.9,0.53]
[1645934619441,0.00433939,2711.5,2710.9,0.83]
[1645934619841,0.00433939,2711.5,2710.9,0.53]
[1645934620442,1.0,2711.3,2710.5,0.00096]
[1645934620642,1.0,2711.3,2710.6,7.3784]
[1645934620840,1.0,2711.2,2710.6,7.3784]
[1645934621041,1.0,2711.2,2710.6,8.3784]
[1645934621279,1.0,2711.2,2710.6,8.2784]
[1645934621879,0.00583838,2711.0,2710.6,8.5784]
[1645934622079,0.00583838,2711.0,2710.6,7.2784]
[1645934622881,1.0,2711.4,2710.7,1.27580383]
[1645934623085,0.00583843,2710.9,2710.7,1.27580383]
[1645934623284,0.00583843,2710.9,2710.8,1.1516]
[1645934623488,0.00583843,2710.9,2710.8,0.83]
[1645934623683,0.00583843,2710.9,2710.8,12.6716]
[1645934624091,1.0,2711.6,2710.8,13.6716]
[1645934624286,0.00583841,2711.0,2710.8,1.83]
[1645934624487,0.00583841,2711.0,2710.8,13.05]
[1645934624686,0.00583841,2711.0,2710.9,11.8416]
[1645934624888,0.00583841,2711.0,2710.9,13.6716]
[1645934625342,1.0,2711.8,2710.9,13.6716]
[1645934625539,0.00583835,2711.1,2710.9,13.6716]
[1645934625742,0.00583835,2711.1,2710.9,13.6216]
[1645934626440,0.1474,2712.4,2710.9,13.6216]
[1645934626649,0.00583832,2711.1,2710.9,13.3675]
[1645934626843,0.00583832,2711.1,2711.0,11.8416]
[1645934627043,0.00583832,2711.1,2711.0,12.3716]
[1645934627244,0.00583832,2711.1,2711.0,13.3716]
[1645934627742,3.5,2712.3,2711.1,11.8416]
[1645934627945,0.0058383,2711.2,2711.1,12.519]
[1645934628142,0.0058383,2711.2,2711.1,13.819]
[1645934628342,0.0058383,2711.2,2711.1,2.599]
[1645934628543,0.0058383,2711.2,2711.1,1.9774]
[1645934628791,1.0,2711.9,2711.1,0.9774]
[1645934628993,1.0,2711.9,2711.4,1.34606518]
[1645934629198,1.0,2711.9,2711.4,1.64606518]
[1645934629994,1.0,2711.9,2711.4,1.34606518]
[1645934630201,1.0,2711.8,2711.4,1.34606518]
[1645934630400,1.00583796,2711.8,2711.4,1.34606518]
[1645934630799,1.55832247,2711.7,2711.4,1.34606518]
[1645934631401,0.00583802,2711.7,2711.4,1.34606518]
[1645934631603,0.00583802,2711.7,2711.4,1.29606518]
[1645934632398,1.0,2712.0,2711.4,1.59606518]
[1645934632638,0.00583802,2711.7,2711.4,1.59606518]
[1645934633641,1.0,2712.1,2711.4,1.59606518]
[1645934633840,0.00583802,2711.7,2711.4,1.59606518]
[1645934634844,0.02096093,2711.8,2711.2,0.3]
[1645934635038,0.00583802,2711.7,2711.1,0.53]
[1645934635843,0.00583802,2711.7,2711.3,1.33946169]
[1645934636046,0.02096093,2711.8,2711.3,1.33946169]
[1645934636491,0.0058381,2711.5,2711.3,1.33946169]
[1645934636695,0.0058381,2711.5,2711.3,1.63946169]
[1645934636893,0.0058381,2711.5,2711.3,2.31686169]
[1645934637299,0.02096093,2711.8,2711.3,2.31686169]
[1645934637498,0.0058381,2711.5,2711.3,2.31686169]
[1645934638398,0.02096093,2711.8,2711.3,2.31686169]
[1645934638799,0.0058381,2711.5,2711.3,2.31686169]
[1645934639704,1.0,2711.9,2711.3,2.31686169]
[1645934639904,1.0,2711.9,2711.8,1.1497695]
[1645934640159,0.02150708,2712.1,2711.8,1.1497695]
[1645934640359,0.02150708,2712.1,2711.0,1.0]
[1645934640360,5.02150708,2712.1,2711.0,1.0]
[1645934640560,5.02150708,2712.1,2710.8,0.25]
[1645934640561,1.66228099,2711.6,2710.8,0.25]
[1645934640756,1.66228099,2711.6,2710.6,8.2784]
[1645934640757,3.8675,2711.5,2710.6,7.2784]
[1645934641156,1.0,2710.9,2710.6,7.2784]
[1645934641757,3.5,2711.3,2710.8,1.13043265]
[1645934641960,1.0,2711.0,2710.8,1.13043265]
[1645934642558,1.0,2711.0,2710.8,0.66883265]
[1645934643361,1.0,2711.0,2710.6,8.2784]
[1645934643659,1.00557958,2711.0,2710.6,8.2784]
[1645934644185,0.00557958,2711.0,2710.6,8.2784]
[1645934644384,0.00557958,2711.0,2710.7,1.22667167]
[1645934644588,1.0,2711.1,2710.7,1.22667167]
[1645934644891,0.00520214,2710.9,2710.7,1.22667167]
[1645934645490,0.00520214,2710.9,2710.7,0.76507167]
[1645934645690,1.0,2711.0,2710.7,0.76507167]
[1645934645892,0.00520214,2710.9,2710.7,0.76507167]
[1645934646092,0.00520214,2710.9,2710.7,12.28507167]
[1645934646291,0.00520214,2710.9,2710.7,13.43247167]
[1645934646692,0.00520214,2710.9,2710.7,14.05407167]
[1645934646893,1.0,2711.5,2710.7,14.05407167]
[1645934647091,1.0,2711.5,2710.7,14.58407167]
[1645934647292,1.0,2711.5,2711.2,1.42005658]
[1645934647562,1.0,2711.5,2710.7,13.1974]
[1645934648235,1.0,2711.5,2710.8,0.6216]
[1645934648435,0.00521706,2711.2,2710.8,0.3074]
[1645934648636,0.00521706,2711.2,2710.9,1.21438325]
[1645934648839,1.0,2711.0,2710.9,0.1475]
[1645934649037,1.0,2711.0,2710.8,0.6074]
[1645934649237,0.02368933,2710.9,2710.8,0.6074]
[1645934649438,0.02368933,2710.9,2710.8,1.1374]
[1645934649641,0.02368933,2710.9,2710.8,12.3574]
[1645934649840,0.02368933,2710.9,2710.8,1.1374]
[1645934650045,0.02368933,2710.9,2710.8,2.1374]
[1645934650243,0.02368933,2710.9,2710.8,1.1374]
[1645934650645,0.02368933,2710.9,2710.8,12.3574]
[1645934650845,0.02368933,2710.9,2710.8,19.8353]
[1645934651049,0.02368933,2710.9,2710.8,20.8353]
[1645934651491,0.02368933,2710.9,2710.8,20.3737]